[Event "Titled Tuesday Blitz September 28 2021"]
[White "Vokhidov, Shamsiddin"]
[Black "Andreikin, Dmitry"]
[WhiteFideId "14204223"]
[BlackFideId "4158814"]
[WhiteElo "2875"]
[BlackElo "3015"]
[Result "0-1"]
[Round "05"]
[TimeControl "180+1"]
[Date "2021.09.28"]
[WhiteClock "0:00:45"]
[BlackClock "0:00:05"]

1. e4 {[%clk 0:03:00]}  e5 {[%clk 0:02:58]} 2. Nf3 {[%clk 0:03:01]}  Nc6 {[%clk 0:02:58]} 3. Bb5 {[%clk 0:03:01]}  Nf6 {[%clk 0:02:58]} 4. d3 {[%clk 0:03:01]}  Bc5 {[%clk 0:02:58]} 5. Bxc6 {[%clk 0:03:01]}  dxc6 {[%clk 0:02:58]} 6. Nbd2 {[%clk 0:03:02]}  Nd7 {[%clk 0:02:58]} 7. Nc4 {[%clk 0:02:59]}  Qe7 {[%clk 0:02:58]} 8. c3 {[%clk 0:02:45]}  b6 {[%clk 0:02:56]} 9. Ne3 {[%clk 0:02:43]}  Ba6 {[%clk 0:02:49]} 10. Nf5 {[%clk 0:02:38]}  Qf8 {[%clk 0:02:49]} 11. d4 {[%clk 0:02:34]}  exd4 {[%clk 0:02:46]} 12. b4 {[%clk 0:02:34]}  O-O-O {[%clk 0:02:34]} 13. bxc5 {[%clk 0:02:33]}  dxc3 {[%clk 0:02:25]} 14. Ba3 {[%clk 0:02:29]}  Nxc5 {[%clk 0:02:21]} 15. N3d4 {[%clk 0:02:12]}  g6 {[%clk 0:01:57]} 16. Ne3 {[%clk 0:02:08]}  Nd3+ {[%clk 0:01:54]} 17. Qxd3 {[%clk 0:02:07]}  Qxa3 {[%clk 0:01:54]} 18. Ndc2 {[%clk 0:01:55]}  Qa5 {[%clk 0:01:42]} 19. Nc4 {[%clk 0:01:51]}  Rxd3 {[%clk 0:01:38]} 20. Nxa5 {[%clk 0:01:51]}  bxa5 {[%clk 0:01:35]} 21. O-O {[%clk 0:01:52]}  Rhd8 {[%clk 0:01:27]} 22. Rfc1 {[%clk 0:01:51]}  Bb5 {[%clk 0:01:21]} 23. Ne1 {[%clk 0:01:47]}  Ba4 {[%clk 0:01:13]} 24. Nxd3 {[%clk 0:01:46]}  Rxd3 {[%clk 0:01:14]} 25. f3 {[%clk 0:01:43]}  c2 {[%clk 0:01:12]} 26. Kf2 {[%clk 0:01:43]}  c5 {[%clk 0:01:10]} 27. a3 {[%clk 0:01:37]}  c4 {[%clk 0:00:49]} 28. h4 {[%clk 0:01:24]}  Kd7 {[%clk 0:00:46]} 29. Kg3 {[%clk 0:01:15]}  Kd6 {[%clk 0:00:38]} 30. Kf4 {[%clk 0:01:15]}  f6 {[%clk 0:00:26]} 31. g4 {[%clk 0:01:15]}  c3 {[%clk 0:00:21]} 32. g5 {[%clk 0:01:14]}  fxg5+ {[%clk 0:00:21]} 33. hxg5 {[%clk 0:01:15]}  Rd1 {[%clk 0:00:18]} 34. Ke3 {[%clk 0:01:08]}  Kc5 {[%clk 0:00:18]} 35. Ke2 {[%clk 0:01:05]}  Rd2+ {[%clk 0:00:14]} 36. Ke3 {[%clk 0:01:05]}  Kc4 {[%clk 0:00:15]} 37. Rh1 {[%clk 0:00:51]}  Kb3 {[%clk 0:00:11]} 38. f4 {[%clk 0:00:46]}  Kb2 {[%clk 0:00:10]} 39. f5 {[%clk 0:00:46]}  Rd1 {[%clk 0:00:05]} 40. Raxd1 {[%clk 0:00:45]}  cxd1=Q {[%clk 0:00:04]} 41. Rxd1 {[%clk 0:00:46]}  Bxd1 {[%clk 0:00:05]} 42. f6 {[%clk 0:00:45]}  c2 {[%clk 0:00:05]} 0-1


[Site "https://www.chess.com"]

[Event "Titled Tuesday Blitz September 28 2021"]
[White "Wadsworth, Matthew J"]
[Black "Kovalev, Vladislav"]
[WhiteFideId "415804"]
[BlackFideId "13504398"]
[WhiteElo "2293"]
[BlackElo "2573"]
[Result "0-1"]
[Round "05"]
[TimeControl "180+1"]
[Date "2021.09.28"]
[WhiteClock "0:00:01"]
[BlackClock "0:00:16"]

1. c4 {[%clk 0:03:00]}  g6 {[%clk 0:03:00]} 2. g3 {[%clk 0:03:01]}  Bg7 {[%clk 0:03:00]} 3. Bg2 {[%clk 0:03:00]}  d6 {[%clk 0:03:00]} 4. Nc3 {[%clk 0:03:00]}  e5 {[%clk 0:03:01]} 5. d3 {[%clk 0:03:00]}  Ne7 {[%clk 0:03:00]} 6. Rb1 {[%clk 0:03:00]}  O-O {[%clk 0:03:01]} 7. b4 {[%clk 0:02:58]}  f5 {[%clk 0:03:01]} 8. e3 {[%clk 0:02:53]}  e4 {[%clk 0:02:38]} 9. Nge2 {[%clk 0:02:48]}  exd3 {[%clk 0:02:38]} 10. Qxd3 {[%clk 0:02:48]}  Nbc6 {[%clk 0:02:39]} 11. Nd5 {[%clk 0:02:31]}  Ne5 {[%clk 0:02:36]} 12. Qc2 {[%clk 0:02:20]}  c6 {[%clk 0:02:36]} 13. Nxe7+ {[%clk 0:02:16]}  Qxe7 {[%clk 0:02:37]} 14. O-O {[%clk 0:02:12]}  Be6 {[%clk 0:02:37]} 15. c5 {[%clk 0:02:11]}  d5 {[%clk 0:02:18]} 16. Bb2 {[%clk 0:02:00]}  g5 {[%clk 0:01:52]} 17. Bxe5 {[%clk 0:01:32]}  Bxe5 {[%clk 0:01:52]} 18. f4 {[%clk 0:01:31]}  Bg7 {[%clk 0:01:45]} 19. Nd4 {[%clk 0:01:17]}  Rae8 {[%clk 0:01:33]} 20. Rbe1 {[%clk 0:01:03]}  Bd7 {[%clk 0:01:30]} 21. fxg5 {[%clk 0:00:54]}  Qxg5 {[%clk 0:01:29]} 22. Qf2 {[%clk 0:00:49]}  Rxe3 {[%clk 0:01:03]} 23. Qxe3 {[%clk 0:00:45]}  Qxe3+ {[%clk 0:01:03]} 24. Rxe3 {[%clk 0:00:45]}  Bxd4 {[%clk 0:01:03]} 25. Re1 {[%clk 0:00:41]}  f4 {[%clk 0:00:58]} 26. gxf4 {[%clk 0:00:38]}  Rxf4 {[%clk 0:00:59]} 27. b5 {[%clk 0:00:32]}  Bxc5 {[%clk 0:00:57]} 28. Kh1 {[%clk 0:00:25]}  Bxe3 {[%clk 0:00:56]} 29. Rxe3 {[%clk 0:00:25]}  Kf7 {[%clk 0:00:44]} 30. Ra3 {[%clk 0:00:18]}  Rb4 {[%clk 0:00:40]} 31. h3 {[%clk 0:00:13]}  Rxb5 {[%clk 0:00:39]} 32. Rxa7 {[%clk 0:00:13]}  Ke7 {[%clk 0:00:39]} 33. a4 {[%clk 0:00:13]}  Rb1+ {[%clk 0:00:38]} 34. Kh2 {[%clk 0:00:12]}  Rb2 {[%clk 0:00:39]} 35. a5 {[%clk 0:00:11]}  Kd6 {[%clk 0:00:38]} 36. a6 {[%clk 0:00:10]}  bxa6 {[%clk 0:00:37]} 37. Rxa6 {[%clk 0:00:11]}  h5 {[%clk 0:00:38]} 38. h4 {[%clk 0:00:10]}  Ke5 {[%clk 0:00:31]} 39. Kg3 {[%clk 0:00:09]}  Rb3+ {[%clk 0:00:30]} 40. Kf2 {[%clk 0:00:09]}  Rc3 {[%clk 0:00:25]} 41. Bf3 {[%clk 0:00:09]}  Bg4 {[%clk 0:00:26]} 42. Bg2 {[%clk 0:00:05]}  c5 {[%clk 0:00:20]} 43. Ra8 {[%clk 0:00:04]}  Rc2+ {[%clk 0:00:20]} 44. Kg3 {[%clk 0:00:04]}  c4 {[%clk 0:00:18]} 45. Re8+ {[%clk 0:00:03]}  Be6 {[%clk 0:00:19]} 46. Kf3 {[%clk 0:00:01]}  Kd6 {[%clk 0:00:16]} 0-1


[Site "https://www.chess.com"]

[Event "Titled Tuesday Blitz September 28 2021"]
[White "Wagner, Dennis"]
[Black "Langrock, Hannes"]
[WhiteFideId "24650684"]
[BlackFideId "4655290"]
[WhiteElo "2355"]
[BlackElo "2325"]
[Result "0-1"]
[Round "05"]
[TimeControl "180+1"]
[Date "2021.09.28"]
[WhiteClock "0:00:10"]
[BlackClock "0:00:04"]

1. e4 {[%clk 0:02:26]}  c5 {[%clk 0:02:58]} 2. Nf3 {[%clk 0:02:25]}  e6 {[%clk 0:02:58]} 3. d4 {[%clk 0:02:26]}  cxd4 {[%clk 0:02:59]} 4. Nxd4 {[%clk 0:02:26]}  Nf6 {[%clk 0:02:59]} 5. Nc3 {[%clk 0:02:27]}  Nc6 {[%clk 0:02:59]} 6. Ndb5 {[%clk 0:02:27]}  Bc5 {[%clk 0:02:59]} 7. Bf4 {[%clk 0:02:25]}  O-O {[%clk 0:02:59]} 8. Bc7 {[%clk 0:02:25]}  Qe7 {[%clk 0:03:00]} 9. Bd6 {[%clk 0:02:25]}  Bxd6 {[%clk 0:03:00]} 10. Qxd6 {[%clk 0:02:26]}  Qd8 {[%clk 0:03:01]} 11. Be2 {[%clk 0:02:12]}  a6 {[%clk 0:02:53]} 12. Nc7 {[%clk 0:02:02]}  Ra7 {[%clk 0:02:50]} 13. e5 {[%clk 0:02:02]}  b5 {[%clk 0:02:20]} 14. exf6 {[%clk 0:01:28]}  Qxc7 {[%clk 0:02:20]} 15. Qd2 {[%clk 0:01:20]}  Qe5 {[%clk 0:01:58]} 16. fxg7 {[%clk 0:01:18]}  Qxg7 {[%clk 0:01:55]} 17. Ne4 {[%clk 0:01:04]}  d5 {[%clk 0:01:53]} 18. Ng3 {[%clk 0:01:01]}  Kh8 {[%clk 0:01:39]} 19. O-O {[%clk 0:00:57]}  f5 {[%clk 0:01:37]} 20. c3 {[%clk 0:00:35]}  Rg8 {[%clk 0:01:34]} 21. f4 {[%clk 0:00:32]}  d4 {[%clk 0:01:17]} 22. Bf3 {[%clk 0:00:30]}  dxc3 {[%clk 0:01:13]} 23. bxc3 {[%clk 0:00:28]}  Na5 {[%clk 0:01:07]} 24. Nh5 {[%clk 0:00:24]}  Qd7 {[%clk 0:01:05]} 25. Qf2 {[%clk 0:00:22]}  Nc4 {[%clk 0:00:22]} 26. Rad1 {[%clk 0:00:22]}  Qe7 {[%clk 0:00:23]} 27. Qd4+ {[%clk 0:00:22]}  e5 {[%clk 0:00:23]} 28. fxe5 {[%clk 0:00:21]}  Rd7 {[%clk 0:00:21]} 29. Bd5 {[%clk 0:00:22]}  Rxd5 {[%clk 0:00:11]} 30. Qxd5 {[%clk 0:00:22]}  Bb7 {[%clk 0:00:12]} 31. Qxg8+ {[%clk 0:00:21]}  Kxg8 {[%clk 0:00:12]} 32. Nf6+ {[%clk 0:00:22]}  Kf8 {[%clk 0:00:10]} 33. Rxf5 {[%clk 0:00:21]}  Qc5+ {[%clk 0:00:05]} 34. Kh1 {[%clk 0:00:17]}  Kg7 {[%clk 0:00:05]} 35. Rd7+ {[%clk 0:00:16]}  Kg6 {[%clk 0:00:05]} 36. Rf1 {[%clk 0:00:12]}  Bc6 {[%clk 0:00:04]} 37. Rc7 {[%clk 0:00:10]}  Bxg2+ {[%clk 0:00:04]} 38. Kxg2 {[%clk 0:00:09]}  Qxc7 {[%clk 0:00:05]} 39. Ng4 {[%clk 0:00:06]}  Qc6+ {[%clk 0:00:04]} 40. Kg3 {[%clk 0:00:05]}  Qd5 {[%clk 0:00:04]} 41. Rf6+ {[%clk 0:00:05]}  Kg7 {[%clk 0:00:04]} 42. Rf5 {[%clk 0:00:05]}  Qd3+ {[%clk 0:00:04]} 43. Kf4 {[%clk 0:00:05]}  Qd2+ {[%clk 0:00:04]} 44. Kg3 {[%clk 0:00:04]}  Qxc3+ {[%clk 0:00:04]} 45. Kh4 {[%clk 0:00:05]}  Qe1+ {[%clk 0:00:04]} 46. Kh5 {[%clk 0:00:05]}  Ne3 {[%clk 0:00:04]} 47. Rg5+ {[%clk 0:00:04]}  Kf7 {[%clk 0:00:04]} 48. e6+ {[%clk 0:00:05]}  Ke7 {[%clk 0:00:03]} 49. Nh6 {[%clk 0:00:04]}  Qe2+ {[%clk 0:00:03]} 50. Kh4 {[%clk 0:00:04]}  Qf3 {[%clk 0:00:03]} 51. Rg7+ {[%clk 0:00:04]}  Kxe6 {[%clk 0:00:03]} 52. Ng4 {[%clk 0:00:04]}  Nxg4 {[%clk 0:00:03]} 53. Rxg4 {[%clk 0:00:05]}  Qf6+ {[%clk 0:00:04]} 54. Kh3 {[%clk 0:00:06]}  a5 {[%clk 0:00:04]} 55. Rg3 {[%clk 0:00:06]}  b4 {[%clk 0:00:04]} 56. Re3+ {[%clk 0:00:07]}  Kf7 {[%clk 0:00:04]} 57. Rg3 {[%clk 0:00:08]}  Qf5+ {[%clk 0:00:05]} 58. Kg2 {[%clk 0:00:09]}  a4 {[%clk 0:00:05]} 59. Rf3 {[%clk 0:00:09]}  Kf6 {[%clk 0:00:04]} 60. Rh3 {[%clk 0:00:08]}  b3 {[%clk 0:00:05]} 61. Rh6+ {[%clk 0:00:08]}  Kg5 {[%clk 0:00:05]} 62. Ra6 {[%clk 0:00:08]}  Qd5+ {[%clk 0:00:04]} 63. Kg3 {[%clk 0:00:08]}  bxa2 {[%clk 0:00:04]} 64. h4+ {[%clk 0:00:09]}  Kh5 {[%clk 0:00:04]} 65. Rxa4 {[%clk 0:00:10]}  Qe5+ {[%clk 0:00:04]} 66. Kh3 {[%clk 0:00:10]}  a1=Q {[%clk 0:00:04]} 67. Ra2 {[%clk 0:00:09]}  Qac3+ {[%clk 0:00:03]} 68. Kg2 {[%clk 0:00:09]}  Qe4+ {[%clk 0:00:04]} 69. Kf1 {[%clk 0:00:09]}  Qb1+ {[%clk 0:00:03]} 70. Kg2 {[%clk 0:00:09]}  Qxa2+ {[%clk 0:00:04]} 71. Kh1 {[%clk 0:00:10]}  Qc1# {[%clk 0:00:04]} 0-1


[Site "https://www.chess.com"]

[Event "Titled Tuesday Blitz September 28 2021"]
[White "Warmerdam, Max"]
[Black "Jeet, Jain"]
[WhiteFideId "1048104"]
[BlackFideId "5073022"]
[WhiteElo "2537"]
[BlackElo "2085"]
[Result "1-0"]
[Round "05"]
[TimeControl "180+1"]
[Date "2021.09.28"]
[WhiteClock "0:01:33"]
[BlackClock "0:00:15"]

1. e4 {[%clk 0:03:00]}  e5 {[%clk 0:02:58]} 2. Nf3 {[%clk 0:03:01]}  Nc6 {[%clk 0:02:58]} 3. Bb5 {[%clk 0:03:01]}  a6 {[%clk 0:02:58]} 4. Ba4 {[%clk 0:03:02]}  Nf6 {[%clk 0:02:58]} 5. O-O {[%clk 0:03:02]}  Be7 {[%clk 0:02:59]} 6. Bxc6 {[%clk 0:03:02]}  dxc6 {[%clk 0:02:58]} 7. d3 {[%clk 0:03:03]}  Bd6 {[%clk 0:02:48]} 8. Be3 {[%clk 0:03:03]}  O-O {[%clk 0:02:47]} 9. Nc3 {[%clk 0:03:01]}  Nd7 {[%clk 0:02:47]} 10. Nd2 {[%clk 0:03:00]}  c5 {[%clk 0:02:47]} 11. a4 {[%clk 0:03:00]}  Nb8 {[%clk 0:02:47]} 12. Nc4 {[%clk 0:02:58]}  Nc6 {[%clk 0:02:47]} 13. Nxd6 {[%clk 0:02:48]}  cxd6 {[%clk 0:02:48]} 14. f4 {[%clk 0:02:48]}  Nd4 {[%clk 0:02:45]} 15. f5 {[%clk 0:02:47]}  Bd7 {[%clk 0:02:43]} 16. f6 {[%clk 0:02:41]}  g6 {[%clk 0:02:28]} 17. Nd5 {[%clk 0:02:40]}  Re8 {[%clk 0:02:26]} 18. Qd2 {[%clk 0:02:37]}  Re6 {[%clk 0:02:08]} 19. c3 {[%clk 0:02:31]}  Nb3 {[%clk 0:02:06]} 20. Qf2 {[%clk 0:02:28]}  Nxa1 {[%clk 0:02:05]} 21. Rxa1 {[%clk 0:02:22]}  Bc6 {[%clk 0:02:05]} 22. Bg5 {[%clk 0:02:10]}  Kf8 {[%clk 0:00:55]} 23. Qh4 {[%clk 0:01:59]}  h5 {[%clk 0:00:51]} 24. g4 {[%clk 0:01:59]}  Ke8 {[%clk 0:00:44]} 25. gxh5 {[%clk 0:01:59]}  gxh5 {[%clk 0:00:43]} 26. Qxh5 {[%clk 0:01:59]}  Rc8 {[%clk 0:00:35]} 27. c4 {[%clk 0:01:55]}  Qa5 {[%clk 0:00:23]} 28. Qh7 {[%clk 0:01:49]}  Kd8 {[%clk 0:00:20]} 29. Qxf7 {[%clk 0:01:47]}  Bxd5 {[%clk 0:00:16]} 30. exd5 {[%clk 0:01:42]}  Re8 {[%clk 0:00:16]} 31. Qxb7 {[%clk 0:01:33]}  Qc7 {[%clk 0:00:15]} 32. f7+ {[%clk 0:01:33]}  Re7 {[%clk 0:00:15]} 33. f8=Q+ {[%clk 0:01:33]} 1-0


[Site "https://www.chess.com"]

[Event "Titled Tuesday Blitz September 28 2021"]
[White "Yuan, Qingyu"]
[Black "Martin Carmona, Gaston Manuel"]
[WhiteFideId "8609772"]
[BlackFideId "22284567"]
[WhiteElo "2359"]
[BlackElo "2161"]
[Result "0-1"]
[Round "05"]
[TimeControl "180+1"]
[Date "2021.09.28"]
[WhiteClock "0:00:04"]
[BlackClock "0:00:11"]

1. Nf3 {[%clk 0:03:00]}  Nf6 {[%clk 0:02:59]} 2. c4 {[%clk 0:03:01]}  g6 {[%clk 0:02:57]} 3. b3 {[%clk 0:03:01]}  Bg7 {[%clk 0:02:57]} 4. Bb2 {[%clk 0:03:02]}  O-O {[%clk 0:02:58]} 5. g3 {[%clk 0:02:59]}  c5 {[%clk 0:02:56]} 6. Bg2 {[%clk 0:02:59]}  Nc6 {[%clk 0:02:51]} 7. O-O {[%clk 0:02:59]}  d6 {[%clk 0:02:49]} 8. d4 {[%clk 0:02:56]}  cxd4 {[%clk 0:02:44]} 9. Nxd4 {[%clk 0:02:56]}  Bd7 {[%clk 0:02:44]} 10. Nc3 {[%clk 0:02:53]}  Nxd4 {[%clk 0:02:37]} 11. Qxd4 {[%clk 0:02:54]}  Bc6 {[%clk 0:02:37]} 12. Rad1 {[%clk 0:02:50]}  Bxg2 {[%clk 0:02:35]} 13. Kxg2 {[%clk 0:02:49]}  Qc8 {[%clk 0:02:35]} 14. Qe3 {[%clk 0:02:37]}  Re8 {[%clk 0:02:33]} 15. Rd3 {[%clk 0:02:24]}  Ng4 {[%clk 0:02:06]} 16. Qe4 {[%clk 0:02:14]}  Qc6 {[%clk 0:02:05]} 17. Rb1 {[%clk 0:01:32]}  Qxe4+ {[%clk 0:01:34]} 18. Nxe4 {[%clk 0:01:30]}  Bxb2 {[%clk 0:01:34]} 19. Rxb2 {[%clk 0:01:31]}  Ne5 {[%clk 0:01:33]} 20. Rd5 {[%clk 0:01:29]}  Rac8 {[%clk 0:01:27]} 21. c5 {[%clk 0:01:24]}  f5 {[%clk 0:01:01]} 22. cxd6 {[%clk 0:01:23]}  fxe4 {[%clk 0:01:01]} 23. d7 {[%clk 0:01:23]}  Nxd7 {[%clk 0:00:58]} 24. Rxd7 {[%clk 0:01:24]}  Rc6 {[%clk 0:00:32]} 25. Rxb7 {[%clk 0:01:21]}  a6 {[%clk 0:00:32]} 26. Rb4 {[%clk 0:01:12]}  Re6 {[%clk 0:00:31]} 27. Rc2 {[%clk 0:01:05]}  Rd8 {[%clk 0:00:31]} 28. Rcc4 {[%clk 0:00:33]}  e3 {[%clk 0:00:31]} 29. Re4 {[%clk 0:00:28]}  Rxe4 {[%clk 0:00:24]} 30. Rxe4 {[%clk 0:00:29]}  exf2 {[%clk 0:00:22]} 31. Rxe7 {[%clk 0:00:15]}  Rd2 {[%clk 0:00:22]} 32. a4 {[%clk 0:00:13]}  Rb2 {[%clk 0:00:20]} 33. Re3 {[%clk 0:00:12]}  Kf7 {[%clk 0:00:18]} 34. Kxf2 {[%clk 0:00:13]}  a5 {[%clk 0:00:17]} 35. Kf3 {[%clk 0:00:13]}  Kf6 {[%clk 0:00:17]} 36. h4 {[%clk 0:00:13]}  h5 {[%clk 0:00:16]} 37. Ke4 {[%clk 0:00:13]}  Rb1 {[%clk 0:00:15]} 38. Kd4 {[%clk 0:00:12]}  Kf5 {[%clk 0:00:15]} 39. Kc5 {[%clk 0:00:12]}  Kg4 {[%clk 0:00:16]} 40. Kb5 {[%clk 0:00:11]}  Rg1 {[%clk 0:00:07]} 41. Kxa5 {[%clk 0:00:12]}  Rxg3 {[%clk 0:00:06]} 42. Rxg3+ {[%clk 0:00:12]}  Kxg3 {[%clk 0:00:07]} 43. b4 {[%clk 0:00:13]}  Kxh4 {[%clk 0:00:06]} 44. b5 {[%clk 0:00:13]}  g5 {[%clk 0:00:07]} 45. b6 {[%clk 0:00:14]}  g4 {[%clk 0:00:08]} 46. b7 {[%clk 0:00:15]}  g3 {[%clk 0:00:09]} 47. b8=Q {[%clk 0:00:16]}  Kh3 {[%clk 0:00:10]} 48. Qf4 {[%clk 0:00:07]}  h4 {[%clk 0:00:10]} 49. e4 {[%clk 0:00:04]}  g2 {[%clk 0:00:10]} 50. Qf3+ {[%clk 0:00:04]}  Kh2 {[%clk 0:00:11]} 51. Qf4+ {[%clk 0:00:04]}  Kh3 {[%clk 0:00:10]} 52. Qg5 {[%clk 0:00:04]}  g1=Q {[%clk 0:00:10]} 53. Qf5+ {[%clk 0:00:03]}  Kh2 {[%clk 0:00:09]} 54. Kb5 {[%clk 0:00:03]}  Qb1+ {[%clk 0:00:09]} 55. Ka6 {[%clk 0:00:03]}  Qd3+ {[%clk 0:00:09]} 56. Ka5 {[%clk 0:00:02]}  h3 {[%clk 0:00:08]} 57. Qf4+ {[%clk 0:00:02]}  Kg2 {[%clk 0:00:08]} 58. e5 {[%clk 0:00:03]}  h2 {[%clk 0:00:08]} 59. Qg4+ {[%clk 0:00:03]}  Kf2 {[%clk 0:00:06]} 60. Qf4+ {[%clk 0:00:03]}  Kg2 {[%clk 0:00:07]} 61. Qg4+ {[%clk 0:00:04]}  Qg3 {[%clk 0:00:08]} 62. Qe2+ {[%clk 0:00:04]}  Qf2 {[%clk 0:00:07]} 63. Qg4+ {[%clk 0:00:04]}  Kf1 {[%clk 0:00:08]} 64. Qd1+ {[%clk 0:00:04]}  Qe1+ {[%clk 0:00:09]} 65. Qxe1+ {[%clk 0:00:05]}  Kxe1 {[%clk 0:00:09]} 66. e6 {[%clk 0:00:05]}  h1=Q {[%clk 0:00:10]} 67. e7 {[%clk 0:00:04]}  Qa8+ {[%clk 0:00:11]} 0-1


[Site "https://www.chess.com"]

[Event "Titled Tuesday Blitz September 28 2021"]
[White "pawel83"]
[Black "Shimelkov, Vasiliy"]
[BlackFideId "13701630"]
[WhiteElo "2404"]
[BlackElo "2073"]
[Result "1-0"]
[Round "05"]
[TimeControl "180+1"]
[Date "2021.09.28"]
[WhiteClock "0:00:46"]
[BlackClock "0:00:19"]

1. d4 {[%clk 0:03:00]}  d5 {[%clk 0:02:59]} 2. Nf3 {[%clk 0:02:58]}  Nf6 {[%clk 0:02:58]} 3. e3 {[%clk 0:02:58]}  e6 {[%clk 0:02:57]} 4. Bd3 {[%clk 0:02:57]}  Be7 {[%clk 0:02:57]} 5. O-O {[%clk 0:02:55]}  O-O {[%clk 0:02:57]} 6. b3 {[%clk 0:02:55]}  b6 {[%clk 0:02:57]} 7. Bb2 {[%clk 0:02:56]}  Bb7 {[%clk 0:02:57]} 8. Nbd2 {[%clk 0:02:56]}  Nbd7 {[%clk 0:02:57]} 9. Qe2 {[%clk 0:02:57]}  c5 {[%clk 0:02:57]} 10. Rad1 {[%clk 0:02:50]}  Rc8 {[%clk 0:02:54]} 11. Rfe1 {[%clk 0:02:49]}  Qc7 {[%clk 0:02:52]} 12. c4 {[%clk 0:02:40]}  cxd4 {[%clk 0:02:50]} 13. Nxd4 {[%clk 0:02:36]}  Bb4 {[%clk 0:02:49]} 14. a3 {[%clk 0:02:27]}  Bxd2 {[%clk 0:02:48]} 15. Rxd2 {[%clk 0:02:26]}  Ne5 {[%clk 0:02:46]} 16. cxd5 {[%clk 0:02:16]}  Nxd3 {[%clk 0:02:39]} 17. Qxd3 {[%clk 0:02:11]}  Nxd5 {[%clk 0:02:36]} 18. Nb5 {[%clk 0:02:04]}  Qb8 {[%clk 0:02:22]} 19. e4 {[%clk 0:02:02]}  Nf4 {[%clk 0:02:19]} 20. Qg3 {[%clk 0:01:57]}  Ng6 {[%clk 0:02:10]} 21. Nd6 {[%clk 0:01:53]}  Rcd8 {[%clk 0:02:05]} 22. Red1 {[%clk 0:01:44]}  Ba8 {[%clk 0:01:58]} 23. h4 {[%clk 0:01:36]}  h5 {[%clk 0:01:22]} 24. Qg5 {[%clk 0:01:35]}  Rd7 {[%clk 0:01:15]} 25. Qxh5 {[%clk 0:01:14]}  Rfd8 {[%clk 0:01:12]} 26. e5 {[%clk 0:01:09]}  Bxg2 {[%clk 0:01:04]} 27. Qg4 {[%clk 0:01:04]}  Ba8 {[%clk 0:00:53]} 28. h5 {[%clk 0:01:02]}  Ne7 {[%clk 0:00:42]} 29. Qg5 {[%clk 0:00:56]}  Rxd6 {[%clk 0:00:23]} 30. Rxd6 {[%clk 0:00:49]}  Rxd6 {[%clk 0:00:20]} 31. exd6 {[%clk 0:00:48]}  Qb7 {[%clk 0:00:19]} 32. Qxg7# {[%clk 0:00:46]} 1-0


[Site "https://www.chess.com"]